[Event "Live Chess"]
[Site "Chess.com"]
[Date "2023.05.21"]
[Round "-"]
[White "Shepherds_Pie"]
[Black "diana21strabt"]
[Result "1-0"]
[WhiteElo "1952"]
[BlackElo "1765"]
[TimeControl "300"]
[EndTime "4:21:36 PDT"]
[Termination "Shepherds_Pie won by resignation"]

1. c4 {[%clk 0:04:58.5]} 1... e5 {[%clk 0:04:58.6]} 2. Nc3 {[%clk 0:04:56]} 2...
Nf6 {[%clk 0:04:57.7]} 3. Nf3 {[%clk 0:04:52.1]} 3... Nc6 {[%clk 0:04:55.8]} 4.
d4 {[%clk 0:04:49.7]} 4... exd4 {[%clk 0:04:54.7]} 5. Nd5 {[%clk 0:04:48.7]}
5... Be7 {[%clk 0:04:45.5]} 6. Nxd4 {[%clk 0:04:45.7]} 6... Nxd4 {[%clk
0:04:39.1]} 7. Qxd4 {[%clk 0:04:42.6]} 7... O-O {[%clk 0:04:34.4]} 8. Nxe7+
{[%clk 0:04:40.4]} 8... Qxe7 {[%clk 0:04:32.9]} 9. g3 {[%clk 0:04:39.4]} 9... d6
{[%clk 0:04:30.7]} 10. Bg2 {[%clk 0:04:38.2]} 10... Bg4 {[%clk 0:04:25.4]} 11.
e3 {[%clk 0:04:21.9]} 11... c6 {[%clk 0:04:19.6]} 12. O-O {[%clk 0:04:20.2]}
12... Qe5 {[%clk 0:04:15.3]} 13. b3 {[%clk 0:04:10.6]} 13... Qxd4 {[%clk
0:04:13.1]} 14. exd4 {[%clk 0:04:09.5]} 14... Rfe8 {[%clk 0:04:10.7]} 15. Be3
{[%clk 0:04:06.1]} 15... h6 {[%clk 0:04:09.4]} 16. h3 {[%clk 0:04:04]} 16... Bf5
{[%clk 0:04:07]} 17. Rfe1 {[%clk 0:04:02.8]} 17... Be4 {[%clk 0:04:05.3]} 18.
Bf4 {[%clk 0:03:57]} 18... Bxg2 {[%clk 0:04:00.7]} 19. Kxg2 {[%clk 0:03:55.9]}
19... d5 {[%clk 0:03:55.1]} 20. c5 {[%clk 0:03:45.5]} 20... Ne4 {[%clk
0:03:52.6]} 21. Rac1 {[%clk 0:03:38.2]} 21... f6 {[%clk 0:03:48.1]} 22. Rc2
{[%clk 0:03:32.1]} 22... g5 {[%clk 0:03:44.1]} 23. Bc1 {[%clk 0:03:30.8]} 23...
Kf7 {[%clk 0:03:42.1]} 24. Bb2 {[%clk 0:03:26.2]} 24... f5 {[%clk 0:03:36.8]}
25. Rce2 {[%clk 0:03:23.8]} 25... Nf6 {[%clk 0:03:34.3]} 26. f3 {[%clk
0:03:21.7]} 26... Rxe2+ {[%clk 0:03:32.1]} 27. Rxe2 {[%clk 0:03:20.6]} 27... Re8
{[%clk 0:03:31.4]} 28. Kf2 {[%clk 0:03:19.7]} 28... Rxe2+ {[%clk 0:03:25.4]} 29.
Kxe2 {[%clk 0:03:18.6]} 29... Nh5 {[%clk 0:03:24.9]} 30. Kf2 {[%clk 0:03:15]}
30... Ke6 {[%clk 0:03:22]} 31. Bc1 {[%clk 0:03:12.7]} 31... Nf6 {[%clk
0:03:19.2]} 32. h4 {[%clk 0:03:09]} 32... gxh4 {[%clk 0:03:16]} 33. gxh4 {[%clk
0:03:08]} 33... h5 {[%clk 0:03:14.9]} 34. Bg5 {[%clk 0:03:05.1]} 34... Nd7
{[%clk 0:03:11.4]} 35. Kg3 {[%clk 0:02:59.9]} 35... b6 {[%clk 0:03:10.3]} 36. b4
{[%clk 0:02:57.7]} 36... bxc5 {[%clk 0:03:06.8]} 37. bxc5 {[%clk 0:02:54.6]}
37... Nb8 {[%clk 0:03:01.5]} 38. Bd8 {[%clk 0:02:46]} 38... Na6 {[%clk
0:02:57.9]} 39. a3 {[%clk 0:02:42.4]} 39... Kf7 {[%clk 0:02:53.1]} 40. Kf4
{[%clk 0:02:40.6]} 40... Kg6 {[%clk 0:02:52.1]} 41. Ke5 {[%clk 0:02:33.4]} 41...
Nb8 {[%clk 0:02:50.3]} 42. Kd6 {[%clk 0:02:29.5]} 42... Kf7 {[%clk 0:02:36]} 43.
Bc7 {[%clk 0:02:23.5]} 43... Na6 {[%clk 0:02:33.2]} 44. Kxc6 {[%clk 0:02:22.5]}
44... Ke6 {[%clk 0:02:30.6]} 45. Kb7 {[%clk 0:02:15.6]} 45... Nxc5+ {[%clk
0:02:23.4]} 46. dxc5 {[%clk 0:02:12.2]} 46... d4 {[%clk 0:02:22.2]} 47. Bf4
{[%clk 0:02:10.8]} 1-0

[Event "Live Chess"]
[Site "Chess.com"]
[Date "2023.05.21"]
[Round "-"]
[White "Swetha_Queen"]
[Black "Nazar_777"]
[Result "0-1"]
[WhiteElo "348"]
[BlackElo "1568"]
[TimeControl "300"]
[EndTime "4:21:37 PDT"]
[Termination "Nazar_777 won on time"]

1. e4 {[%clk 0:04:57.1]} 1... e6 {[%clk 0:04:50.3]} 2. Nf3 {[%clk 0:04:54.3]}
2... a6 {[%clk 0:04:49.5]} 3. Nc3 {[%clk 0:04:49.1]} 3... h5 {[%clk 0:04:48.5]}
4. g3 {[%clk 0:04:38.8]} 4... c5 {[%clk 0:04:46.5]} 5. d3 {[%clk 0:04:29.8]}
5... Nf6 {[%clk 0:04:45.3]} 6. e5 {[%clk 0:04:26.1]} 6... Ng4 {[%clk 0:04:44]}
7. h3 {[%clk 0:04:17.5]} 7... Nh6 {[%clk 0:04:41]} 8. Bxh6 {[%clk 0:04:11.3]}
8... gxh6 {[%clk 0:04:39.6]} 9. Be2 {[%clk 0:04:07.7]} 9... Be7 {[%clk
0:04:38.4]} 10. g4 {[%clk 0:04:01.7]} 10... hxg4 {[%clk 0:04:36.4]} 11. hxg4
{[%clk 0:04:00.2]} 11... Nc6 {[%clk 0:04:34.8]} 12. Rh5 {[%clk 0:03:50.8]} 12...
Qc7 {[%clk 0:04:33.6]} 13. Nd2 {[%clk 0:03:43.2]} 13... Nd4 {[%clk 0:04:32.1]}
14. g5 {[%clk 0:03:21.4]} 14... Bxg5 {[%clk 0:04:28.8]} 15. Rc1 {[%clk
0:03:04.7]} 15... Qxe5 {[%clk 0:04:27.3]} 16. Nf3 {[%clk 0:02:45.5]} 16... Nxf3+
{[%clk 0:04:21.3]} 17. Kf1 {[%clk 0:02:33.9]} 17... Nd2+ {[%clk 0:04:19]} 18.
Qxd2 {[%clk 0:02:28.9]} 18... Bxd2 {[%clk 0:04:14.7]} 19. Rxe5 {[%clk
0:02:23.2]} 19... Bxc1 {[%clk 0:04:13.5]} 20. Rxc5 {[%clk 0:02:17.3]} 20... b5
{[%clk 0:04:10.5]} 21. b3 {[%clk 0:01:45.6]} 21... Bb7 {[%clk 0:04:09.2]} 22.
Rc7 {[%clk 0:01:38.3]} 22... Bc6 {[%clk 0:04:07.6]} 23. Bg4 {[%clk 0:01:20.5]}
23... Rg8 {[%clk 0:04:05]} 24. Be2 {[%clk 0:01:09.1]} 24... Bd2 {[%clk
0:04:01.4]} 25. Nb1 {[%clk 0:01:01.4]} 25... Bb4 {[%clk 0:03:54.2]} 26. c3
{[%clk 0:00:37.2]} 26... Ba5 {[%clk 0:03:52.5]} 27. b4 {[%clk 0:00:35.2]} 27...
Bxc7 {[%clk 0:03:50.9]} 28. Na3 {[%clk 0:00:22.8]} 28... a5 {[%clk 0:03:48.8]}
29. bxa5 {[%clk 0:00:20.5]} 29... Rxa5 {[%clk 0:03:47.2]} 30. Nc2 {[%clk
0:00:16.4]} 30... Rxa2 {[%clk 0:03:44.7]} 31. Ne3 {[%clk 0:00:13.2]} 31... Ra1+
{[%clk 0:03:40]} 32. Nd1 {[%clk 0:00:08.2]} 32... Ba5 {[%clk 0:03:37.7]} 33. c4
{[%clk 0:00:05.4]} 33... Bd2 {[%clk 0:03:35.5]} 34. cxb5 {[%clk 0:00:01.9]}
34... Bg2+ {[%clk 0:03:33.5]} 0-1

[Event "Live Chess"]
[Site "Chess.com"]
[Date "2023.05.21"]
[Round "-"]
[White "DoYouLikeCurry"]
[Black "Alfiedog12"]
[Result "1-0"]
[WhiteElo "1415"]
[BlackElo "940"]
[TimeControl "300"]
[EndTime "4:21:37 PDT"]
[Termination "DoYouLikeCurry won by resignation"]

1. e4 {[%clk 0:04:57.8]} 1... c6 {[%clk 0:04:57.9]} 2. d4 {[%clk 0:04:55.9]}
2... d5 {[%clk 0:04:56.9]} 3. Nc3 {[%clk 0:04:55.5]} 3... dxe4 {[%clk
0:04:54.6]} 4. Nxe4 {[%clk 0:04:55.4]} 4... Bf5 {[%clk 0:04:53.6]} 5. Ng3 {[%clk
0:04:54.4]} 5... Bg6 {[%clk 0:04:51]} 6. h4 {[%clk 0:04:53.3]} 6... h6 {[%clk
0:04:49.1]} 7. Nf3 {[%clk 0:04:51.2]} 7... Nf6 {[%clk 0:04:46.9]} 8. Ne5 {[%clk
0:04:45.9]} 8... Nbd7 {[%clk 0:04:43.1]} 9. Nxg6 {[%clk 0:04:43]} 9... fxg6
{[%clk 0:04:41.5]} 10. Qd3 {[%clk 0:04:39]} 10... Qa5+ {[%clk 0:04:29]} 11. Bd2
{[%clk 0:04:32.2]} 11... Qb6 {[%clk 0:04:25.6]} 12. Qxg6+ {[%clk 0:04:28.9]}
12... Kd8 {[%clk 0:04:20.5]} 13. O-O-O {[%clk 0:04:02.8]} 13... Qc7 {[%clk
0:03:59.7]} 14. Bc4 {[%clk 0:03:43.1]} 14... b5 {[%clk 0:03:45.6]} 15. Be6
{[%clk 0:03:38.6]} 15... h5 {[%clk 0:03:35.1]} 16. Bxd7 {[%clk 0:03:31.2]} 16...
Qxd7 {[%clk 0:03:32.9]} 17. Rhe1 {[%clk 0:03:26.7]} 17... Rh6 {[%clk 0:03:28.7]}
18. Bxh6 {[%clk 0:03:22.4]} 18... gxh6 {[%clk 0:03:27.6]} 19. Qd3 {[%clk
0:03:14.3]} 19... Bg7 {[%clk 0:03:22.9]} 20. Re3 {[%clk 0:03:05.3]} 20... Nd5
{[%clk 0:03:17.3]} 21. Re4 {[%clk 0:03:02.2]} 21... Nf6 {[%clk 0:03:07.1]} 22.
Re2 {[%clk 0:02:59.2]} 22... Ng4 {[%clk 0:02:59.8]} 23. Rde1 {[%clk 0:02:54.7]}
23... Bf6 {[%clk 0:02:51.6]} 24. Nxh5 {[%clk 0:02:51.2]} 24... Bxd4 {[%clk
0:02:42.6]} 25. Rxe7 {[%clk 0:02:47.1]} 25... Nxf2 {[%clk 0:02:25.7]} 26. Rxd7+
{[%clk 0:02:40.7]} 26... Kxd7 {[%clk 0:02:21.1]} 27. Qxd4+ {[%clk 0:02:39.6]}
27... Kc7 {[%clk 0:02:17.1]} 28. Qxf2 {[%clk 0:02:39.5]} 1-0

[Event "Live Chess"]
[Site "Chess.com"]
[Date "2023.05.21"]
[Round "-"]
[White "Dhaydon19"]
[Black "davigator"]
[Result "1-0"]
[WhiteElo "2699"]
[BlackElo "2324"]
[TimeControl "300"]
[EndTime "4:21:39 PDT"]
[Termination "Dhaydon19 won by resignation"]

1. d4 {[%clk 0:04:57.3]} 1... Nf6 {[%clk 0:04:56.7]} 2. Nf3 {[%clk 0:04:55.8]}
2... e6 {[%clk 0:04:50.8]} 3. g3 {[%clk 0:04:48.4]} 3... b5 {[%clk 0:04:48.9]}
4. Bg2 {[%clk 0:04:48]} 4... Bb7 {[%clk 0:04:48.2]} 5. O-O {[%clk 0:04:47.7]}
5... Be7 {[%clk 0:04:47.3]} 6. b3 {[%clk 0:04:46.5]} 6... O-O {[%clk 0:04:45.8]}
7. Bb2 {[%clk 0:04:45.8]} 7... d5 {[%clk 0:04:44.3]} 8. Nbd2 {[%clk 0:04:44.9]}
8... Nbd7 {[%clk 0:04:42.6]} 9. Rc1 {[%clk 0:04:43]} 9... c5 {[%clk 0:04:41.1]}
10. c4 {[%clk 0:04:40.9]} 10... dxc4 {[%clk 0:04:40.3]} 11. bxc4 {[%clk
0:04:39.3]} 11... b4 {[%clk 0:04:39.7]} 12. Nb3 {[%clk 0:04:37.1]} 12... a5
{[%clk 0:04:37.8]} 13. dxc5 {[%clk 0:04:32.1]} 13... Nxc5 {[%clk 0:04:36.7]} 14.
Nxc5 {[%clk 0:04:25.3]} 14... Bxc5 {[%clk 0:04:35]} 15. Ne5 {[%clk 0:04:23.9]}
15... Bxg2 {[%clk 0:04:32.4]} 16. Kxg2 {[%clk 0:04:22.9]} 16... Qc7 {[%clk
0:04:30.8]} 17. Nd3 {[%clk 0:04:20.9]} 17... Be7 {[%clk 0:04:23.2]} 18. Qa4
{[%clk 0:04:17.7]} 18... Qb7+ {[%clk 0:04:14.7]} 19. f3 {[%clk 0:04:15.7]} 19...
Rfc8 {[%clk 0:04:05.8]} 20. Rfd1 {[%clk 0:04:12.8]} 20... Nd7 {[%clk 0:04:03.7]}
21. Bd4 {[%clk 0:04:00.2]} 21... Qc6 {[%clk 0:03:43.6]} 22. Qb5 {[%clk
0:03:50.6]} 22... Nc5 {[%clk 0:03:32.8]} 23. Bxc5 {[%clk 0:03:48.1]} 23... Bxc5
{[%clk 0:03:30.6]} 24. Ne5 {[%clk 0:03:47.2]} 24... Qe8 {[%clk 0:03:23.3]} 25.
Nd7 {[%clk 0:03:43.7]} 25... Be3 {[%clk 0:03:21]} 26. Rc2 {[%clk 0:03:41.7]}
26... Rd8 {[%clk 0:03:18.3]} 27. Rd3 {[%clk 0:03:38.8]} 27... Ra7 {[%clk
0:03:11.4]} 28. Ne5 {[%clk 0:03:29.2]} 28... Bg5 {[%clk 0:02:38.5]} 29. Rxd8
{[%clk 0:03:25]} 29... Qxd8 {[%clk 0:02:35.7]} 30. Nc6 {[%clk 0:03:24.2]} 30...
Qd1 {[%clk 0:02:11.3]} 31. Qb8+ {[%clk 0:03:22]} 31... Bd8 {[%clk 0:02:08.9]}
32. Nxd8 {[%clk 0:02:59.7]} 32... h5 {[%clk 0:02:07.8]} 33. Nxe6+ {[%clk
0:02:56.9]} 33... Kh7 {[%clk 0:02:06.1]} 34. Ng5+ {[%clk 0:02:49.7]} 34... Kg6
{[%clk 0:02:04.5]} 35. Qb6+ {[%clk 0:02:46.9]} 35... f6 {[%clk 0:02:03.2]} 36.
Qxa7 {[%clk 0:02:43.5]} 36... Qxc2 {[%clk 0:02:00.7]} 37. Qf7+ {[%clk
0:02:41.9]} 37... Kxg5 {[%clk 0:01:59]} 38. Qxg7+ {[%clk 0:02:40.1]} 1-0

[Event "Live Chess"]
[Site "Chess.com"]
[Date "2023.05.21"]
[Round "-"]
[White "JoeyCage"]
[Black "Ian-Morley"]
[Result "1-0"]
[WhiteElo "2290"]
[BlackElo "1051"]
[TimeControl "300"]
[EndTime "4:21:40 PDT"]
[Termination "JoeyCage won by resignation"]

1. e4 {[%clk 0:04:58.2]} 1... e5 {[%clk 0:04:57]} 2. Nf3 {[%clk 0:04:57]} 2...
Nc6 {[%clk 0:04:56.2]} 3. Bb5 {[%clk 0:04:55.7]} 3... a6 {[%clk 0:04:54.9]} 4.
Bxc6 {[%clk 0:04:54.1]} 4... dxc6 {[%clk 0:04:54]} 5. d4 {[%clk 0:04:54]} 5...
Bb4+ {[%clk 0:04:46.7]} 6. c3 {[%clk 0:04:52.3]} 6... Be7 {[%clk 0:04:44.4]} 7.
Nxe5 {[%clk 0:04:50.8]} 7... f6 {[%clk 0:04:38.7]} 8. Qh5+ {[%clk 0:04:48.6]}
8... g6 {[%clk 0:04:37.4]} 9. Nxg6 {[%clk 0:04:47.4]} 9... hxg6 {[%clk
0:04:33.5]} 10. Qxh8 {[%clk 0:04:46.1]} 10... Kf7 {[%clk 0:04:32.4]} 11. Qh7+
{[%clk 0:04:44.4]} 11... Ke6 {[%clk 0:04:30.8]} 12. Qxg6 {[%clk 0:04:42.2]}
12... Qf8 {[%clk 0:04:28.2]} 13. O-O {[%clk 0:04:33.7]} 1-0

[Event "Live Chess"]
[Site "Chess.com"]
[Date "2023.05.21"]
[Round "-"]
[White "Brooms1989"]
[Black "chrisbradgate"]
[Result "1-0"]
[WhiteElo "1141"]
[BlackElo "870"]
[TimeControl "300"]
[EndTime "4:21:47 PDT"]
[Termination "Brooms1989 won by checkmate"]

1. e4 {[%clk 0:04:57.1]} 1... e5 {[%clk 0:04:58.7]} 2. Nc3 {[%clk 0:04:55.9]}
2... Bb4 {[%clk 0:04:57.1]} 3. f4 {[%clk 0:04:50.9]} 3... Bxc3 {[%clk
0:04:53.6]} 4. dxc3 {[%clk 0:04:47.9]} 4... exf4 {[%clk 0:04:52.5]} 5. Nf3
{[%clk 0:04:46.8]} 5... Qe7 {[%clk 0:04:51.3]} 6. Bd3 {[%clk 0:04:44.6]} 6...
Nf6 {[%clk 0:04:49.3]} 7. O-O {[%clk 0:04:42.4]} 7... Nxe4 {[%clk 0:04:42.7]} 8.
Bxe4 {[%clk 0:04:40.6]} 8... Qxe4 {[%clk 0:04:40.7]} 9. Re1 {[%clk 0:04:40.2]}
9... f5 {[%clk 0:04:33.6]} 10. Rxe4+ {[%clk 0:04:27.1]} 10... fxe4 {[%clk
0:04:31.6]} 11. Nd4 {[%clk 0:04:26.7]} 11... O-O {[%clk 0:04:30.5]} 12. Qg4
{[%clk 0:04:17.8]} 12... d5 {[%clk 0:04:22.2]} 13. Qh4 {[%clk 0:04:07.5]} 13...
e3 {[%clk 0:04:13.5]} 14. Bxe3 {[%clk 0:03:57.7]} 14... fxe3 {[%clk 0:04:10.4]}
15. Re1 {[%clk 0:03:55.9]} 15... Re8 {[%clk 0:04:06.7]} 16. Rxe3 {[%clk
0:03:43.2]} 16... Rxe3 {[%clk 0:04:04.2]} 17. Qd8+ {[%clk 0:03:41.8]} 17... Kf7
{[%clk 0:03:49.7]} 18. Qxd5+ {[%clk 0:03:39.6]} 18... Be6 {[%clk 0:03:45.3]} 19.
Nxe6 {[%clk 0:03:35.5]} 19... Re1+ {[%clk 0:03:42.3]} 20. Kf2 {[%clk 0:03:33.5]}
20... Rxe6 {[%clk 0:03:40.1]} 21. Qxb7 {[%clk 0:03:30.1]} 21... Rf6+ {[%clk
0:03:24.8]} 22. Kg1 {[%clk 0:03:26.4]} 22... Rd6 {[%clk 0:02:46.1]} 23. Qxa8
{[%clk 0:03:22.8]} 23... Rd1+ {[%clk 0:02:44.5]} 24. Kf2 {[%clk 0:03:21.2]}
24... Rd2+ {[%clk 0:02:41.4]} 25. Ke1 {[%clk 0:03:20.2]} 25... Rd8 {[%clk
0:02:31]} 26. Qf3+ {[%clk 0:03:16.7]} 26... Kg6 {[%clk 0:02:26.8]} 27. Qg4+
{[%clk 0:03:11.8]} 27... Kf6 {[%clk 0:02:15.9]} 28. Qh4+ {[%clk 0:03:10.2]}
28... Kg6 {[%clk 0:02:08.1]} 29. Qxd8 {[%clk 0:03:09.1]} 29... Nc6 {[%clk
0:02:07.4]} 30. Qxc7 {[%clk 0:03:07.4]} 30... h5 {[%clk 0:01:43.9]} 31. Qxc6+
{[%clk 0:03:05.1]} 31... Kh7 {[%clk 0:01:42.9]} 32. Qe4+ {[%clk 0:03:01.8]}
32... g6 {[%clk 0:01:41.1]} 33. c4 {[%clk 0:03:00.9]} 33... Kh6 {[%clk
0:01:39.5]} 34. c5 {[%clk 0:03:00.4]} 34... a5 {[%clk 0:01:38.1]} 35. c6 {[%clk
0:02:59.8]} 35... a4 {[%clk 0:01:37.3]} 36. c7 {[%clk 0:02:59]} 36... a3 {[%clk
0:01:36.5]} 37. bxa3 {[%clk 0:02:58.9]} 37... h4 {[%clk 0:01:33.5]} 38. c8=Q
{[%clk 0:02:57.4]} 38... Kh5 {[%clk 0:01:32.2]} 39. Qc5+ {[%clk 0:02:54.9]}
39... Kh6 {[%clk 0:01:30.5]} 40. Qf4+ {[%clk 0:02:53.9]} 40... Kh7 {[%clk
0:01:27.6]} 41. Qe7+ {[%clk 0:02:52.9]} 41... Kh8 {[%clk 0:01:20.1]} 42. Qff8#
{[%clk 0:02:52.8]} 1-0

[Event "Live Chess"]
[Site "Chess.com"]
[Date "2023.05.21"]
[Round "-"]
[White "Geomorph"]
[Black "Conradical12"]
[Result "0-1"]
[WhiteElo "1280"]
[BlackElo "1568"]
[TimeControl "300"]
[EndTime "4:21:52 PDT"]
[Termination "Conradical12 won by checkmate"]

1. e4 {[%clk 0:04:58.2]} 1... e5 {[%clk 0:04:59.6]} 2. Nf3 {[%clk 0:04:56.7]}
2... Nc6 {[%clk 0:04:59]} 3. Bc4 {[%clk 0:04:55.7]} 3... Nf6 {[%clk 0:04:58.1]}
4. d4 {[%clk 0:04:54.8]} 4... Nxe4 {[%clk 0:04:49.7]} 5. dxe5 {[%clk 0:04:14.1]}
5... Bc5 {[%clk 0:04:43]} 6. O-O {[%clk 0:04:12]} 6... O-O {[%clk 0:04:40.6]} 7.
Qe2 {[%clk 0:04:05.1]} 7... d5 {[%clk 0:04:35.5]} 8. exd6 {[%clk 0:03:56.3]}
8... Nxd6 {[%clk 0:04:32.9]} 9. Bb3 {[%clk 0:03:54.6]} 9... Re8 {[%clk
0:04:31.1]} 10. Qd2 {[%clk 0:03:45.3]} 10... Bg4 {[%clk 0:04:24.7]} 11. Ng5
{[%clk 0:03:35.5]} 11... h6 {[%clk 0:04:17]} 12. Nxf7 {[%clk 0:03:34.3]} 12...
Nxf7 {[%clk 0:04:12.7]} 13. Qc3 {[%clk 0:03:25.4]} 13... Bd4 {[%clk 0:04:03.3]}
14. Qg3 {[%clk 0:03:17]} 14... Qf6 {[%clk 0:03:59.2]} 15. Qxg4 {[%clk
0:03:08.7]} 15... Qxf2+ {[%clk 0:03:58]} 16. Rxf2 {[%clk 0:02:56.4]} 16... Re1#
{[%clk 0:03:57.2]} 0-1

[Event "Live Chess"]
[Site "Chess.com"]
[Date "2023.05.21"]
[Round "-"]
[White "friarnator"]
[Black "Doge_Dandolo"]
[Result "1-0"]
[WhiteElo "2003"]
[BlackElo "1882"]
[TimeControl "300"]
[EndTime "4:22:15 PDT"]
[Termination "friarnator won by checkmate"]

1. d4 {[%clk 0:04:56.8]} 1... d5 {[%clk 0:04:58.5]} 2. Bf4 {[%clk 0:04:55.7]}
2... Nf6 {[%clk 0:04:53.9]} 3. Nc3 {[%clk 0:04:53.8]} 3... c6 {[%clk 0:04:52.3]}
4. e3 {[%clk 0:04:51.7]} 4... Bf5 {[%clk 0:04:50.7]} 5. Nf3 {[%clk 0:04:50.7]}
5... e6 {[%clk 0:04:49.1]} 6. Ne5 {[%clk 0:04:49.6]} 6... Nbd7 {[%clk
0:04:47.3]} 7. g4 {[%clk 0:04:48.8]} 7... Bg6 {[%clk 0:04:45.7]} 8. h4 {[%clk
0:04:46.9]} 8... h5 {[%clk 0:04:43.8]} 9. Nxg6 {[%clk 0:04:37.8]} 9... fxg6
{[%clk 0:04:42.5]} 10. g5 {[%clk 0:04:37.2]} 10... Ng8 {[%clk 0:04:41.1]} 11.
Qd3 {[%clk 0:04:27.5]} 11... Ne7 {[%clk 0:04:39.1]} 12. Bh3 {[%clk 0:04:25.4]}
12... Nf5 {[%clk 0:04:35.9]} 13. O-O-O {[%clk 0:04:21.6]} 13... Bb4 {[%clk
0:04:31]} 14. Ne2 {[%clk 0:04:18.1]} 14... O-O {[%clk 0:04:26.6]} 15. f3 {[%clk
0:04:06.2]} 15... Qe7 {[%clk 0:04:20.4]} 16. e4 {[%clk 0:03:11.9]} 16... Nd6
{[%clk 0:04:14.4]} 17. Bxd6 {[%clk 0:03:08.2]} 17... Bxd6 {[%clk 0:04:11.6]} 18.
e5 {[%clk 0:03:07.6]} 18... Bc7 {[%clk 0:04:10.1]} 19. Qxg6 {[%clk 0:03:04.2]}
19... c5 {[%clk 0:04:03.9]} 20. Bxe6+ {[%clk 0:03:02.8]} 20... Kh8 {[%clk
0:04:01.3]} 21. Qxh5# {[%clk 0:03:01.6]} 1-0

[Event "Live Chess"]
[Site "Chess.com"]
[Date "2023.05.21"]
[Round "-"]
[White "Tushinskiy"]
[Black "raminguy"]
[Result "1-0"]
[WhiteElo "2207"]
[BlackElo "1952"]
[TimeControl "300"]
[EndTime "4:22:16 PDT"]
[Termination "Tushinskiy won by resignation"]

1. d4 {[%clk 0:04:57.6]} 1... d5 {[%clk 0:04:59]} 2. c3 {[%clk 0:04:57.5]} 2...
e6 {[%clk 0:04:58.6]} 3. Nf3 {[%clk 0:04:56.3]} 3... Nf6 {[%clk 0:04:58.3]} 4.
Bg5 {[%clk 0:04:52.8]} 4... Be7 {[%clk 0:04:58.2]} 5. Nbd2 {[%clk 0:04:48.1]}
5... O-O {[%clk 0:04:57.8]} 6. e3 {[%clk 0:04:45]} 6... c5 {[%clk 0:04:57.4]} 7.
Bd3 {[%clk 0:04:42.1]} 7... cxd4 {[%clk 0:04:56.5]} 8. exd4 {[%clk 0:04:41]}
8... Nc6 {[%clk 0:04:56.4]} 9. Qe2 {[%clk 0:04:37.2]} 9... h6 {[%clk 0:04:56]}
10. Bh4 {[%clk 0:04:34]} 10... Re8 {[%clk 0:04:55.6]} 11. O-O {[%clk 0:04:26.2]}
11... Qc7 {[%clk 0:04:45.1]} 12. Bg3 {[%clk 0:04:22.6]} 12... Bd6 {[%clk
0:04:43.9]} 13. Ne5 {[%clk 0:04:20.9]} 13... b6 {[%clk 0:04:37.5]} 14. f4 {[%clk
0:04:18.9]} 14... Bb7 {[%clk 0:04:35.7]} 15. Rae1 {[%clk 0:04:16.5]} 15... Rac8
{[%clk 0:04:32.1]} 16. Bh4 {[%clk 0:04:13.2]} 16... Be7 {[%clk 0:04:12.9]} 17.
Bg3 {[%clk 0:04:07.4]} 17... Ra8 {[%clk 0:03:47.5]} 18. Qf3 {[%clk 0:04:01.7]}
18... a6 {[%clk 0:03:41.6]} 19. f5 {[%clk 0:03:58.8]} 19... Bd6 {[%clk
0:03:39.7]} 20. Nxc6 {[%clk 0:03:32.8]} 20... Bxc6 {[%clk 0:03:31.1]} 21. fxe6
{[%clk 0:03:28.7]} 21... fxe6 {[%clk 0:03:27.1]} 22. Be5 {[%clk 0:03:26.7]}
22... Bxe5 {[%clk 0:03:25.4]} 23. dxe5 {[%clk 0:03:25.4]} 23... Nh7 {[%clk
0:02:57.1]} 24. Qh5 {[%clk 0:03:20.1]} 24... Nf8 {[%clk 0:02:32.4]} 25. Nf3
{[%clk 0:03:15.2]} 25... Re7 {[%clk 0:02:22.5]} 26. Nd4 {[%clk 0:03:13.5]} 26...
Be8 {[%clk 0:02:19.7]} 27. Qg4 {[%clk 0:03:10]} 27... b5 {[%clk 0:01:58.5]} 28.
a3 {[%clk 0:03:06.4]} 28... Rb8 {[%clk 0:01:56.1]} 29. Rf6 {[%clk 0:02:55.5]}
29... Qa7 {[%clk 0:01:15.7]} 30. Ref1 {[%clk 0:02:51.7]} 30... Bd7 {[%clk
0:01:03.8]} 31. Rxh6 {[%clk 0:02:46.3]} 31... a5 {[%clk 0:00:51.8]} 32. Qh4
{[%clk 0:02:36]} 1-0

[Event "Live Chess"]
[Site "Chess.com"]
[Date "2023.05.21"]
[Round "-"]
[White "MarkLim1"]
[Black "Goblinbasher"]
[Result "1-0"]
[WhiteElo "1697"]
[BlackElo "1228"]
[TimeControl "300"]
[EndTime "4:22:34 PDT"]
[Termination "MarkLim1 won by checkmate"]

1. d4 {[%clk 0:04:59.6]} 1... f5 {[%clk 0:04:57.8]} 2. Nf3 {[%clk 0:04:59]} 2...
Nf6 {[%clk 0:04:56.8]} 3. e3 {[%clk 0:04:58.3]} 3... e6 {[%clk 0:04:55.7]} 4.
Be2 {[%clk 0:04:57.7]} 4... Be7 {[%clk 0:04:54.5]} 5. O-O {[%clk 0:04:57.3]}
5... O-O {[%clk 0:04:53.9]} 6. c4 {[%clk 0:04:56.8]} 6... d6 {[%clk 0:04:52.7]}
7. Nc3 {[%clk 0:04:55.2]} 7... b6 {[%clk 0:04:51.3]} 8. b3 {[%clk 0:04:53.5]}
8... Bb7 {[%clk 0:04:50.4]} 9. Ng5 {[%clk 0:04:52.1]} 9... Ne4 {[%clk
0:04:47.3]} 10. Nxe6 {[%clk 0:04:50.9]} 10... Nxc3 {[%clk 0:04:43.6]} 11. Qc2
{[%clk 0:04:49.3]} 11... Nxe2+ {[%clk 0:04:41.5]} 12. Qxe2 {[%clk 0:04:48.4]}
12... Qd7 {[%clk 0:04:39.6]} 13. Nxf8 {[%clk 0:04:47.4]} 13... Bxf8 {[%clk
0:04:36.6]} 14. Bb2 {[%clk 0:04:46.3]} 14... Qf7 {[%clk 0:04:33.6]} 15. d5
{[%clk 0:04:43.5]} 15... c5 {[%clk 0:04:30.6]} 16. dxc6 {[%clk 0:04:41.2]} 16...
Bxc6 {[%clk 0:04:29.4]} 17. Rad1 {[%clk 0:04:39.4]} 17... Qg6 {[%clk 0:04:27.4]}
18. f3 {[%clk 0:04:37.3]} 18... Nd7 {[%clk 0:04:23.4]} 19. b4 {[%clk 0:04:31.6]}
19... Re8 {[%clk 0:04:21.3]} 20. b5 {[%clk 0:04:13.5]} 20... Bb7 {[%clk
0:04:18.5]} 21. Rd4 {[%clk 0:04:10.1]} 21... Nc5 {[%clk 0:04:15.5]} 22. Rf2
{[%clk 0:04:04.7]} 22... h5 {[%clk 0:04:03]} 23. Qd2 {[%clk 0:03:58.2]} 23... h4
{[%clk 0:03:59.9]} 24. Ba3 {[%clk 0:03:52.4]} 24... h3 {[%clk 0:03:55.7]} 25. g3
{[%clk 0:03:51.7]} 25... Be7 {[%clk 0:03:43.6]} 26. Bxc5 {[%clk 0:03:48]} 26...
dxc5 {[%clk 0:03:39.2]} 27. Rd7 {[%clk 0:03:46.8]} 27... Bc8 {[%clk 0:03:32]}
28. Rxa7 {[%clk 0:03:43.2]} 28... Bh4 {[%clk 0:03:28.2]} 29. Qd5+ {[%clk
0:03:31.4]} 29... Be6 {[%clk 0:03:23.5]} 30. Qe5 {[%clk 0:03:25]} 30... Bxc4
{[%clk 0:03:12.7]} 31. Qf4 {[%clk 0:03:21.8]} 31... Bxb5 {[%clk 0:03:06.7]} 32.
Qxh4 {[%clk 0:03:18.3]} 32... Rxe3 {[%clk 0:03:05]} 33. Qxh3 {[%clk 0:03:15]}
33... Bc6 {[%clk 0:03:00.5]} 34. Rc7 {[%clk 0:03:05.6]} 34... Re1+ {[%clk
0:02:56.2]} 35. Kg2 {[%clk 0:03:04.5]} 35... Qd6 {[%clk 0:02:48.1]} 36. Rc8+
{[%clk 0:03:00.6]} 36... Kf7 {[%clk 0:02:45.8]} 37. Qh5+ {[%clk 0:02:55.2]}
37... g6 {[%clk 0:02:43.4]} 38. Qh7+ {[%clk 0:02:51.1]} 38... Kf6 {[%clk
0:02:41.7]} 39. Qh8+ {[%clk 0:02:47.8]} 39... Kg5 {[%clk 0:02:39.1]} 40. h4#
{[%clk 0:02:46.4]} 1-0